Cogmind - Beta 16 @@@ ROGUE MODE // 2026.01.29 @ 19:36:34 Player: Assis Result: Destroyed by G-47 Trooper with Particle Gun Performance ------------- Evolutions (3) 1500 Regions Visited (4) 800 Robots Destroyed (61) 305 Value Destroyed (1432) 1432 Prototype IDs (15) 300 Alien Tech Used (0) 0 Bonus (0) 0 TOTAL SCORE: 4337 Bonus ------- None Cogmind --------- Core Integrity 0/700 Matter 223/300 Energy 100/100 System Corruption 2% Temperature Cool (18) Movement Core (50) Location -7/Factory Parts ------- > --- POWER (1) -------- (None) > --- PROPULSION (4) --- (None) > --- UTILITY (6) ------ (None) > --- WEAPON (2) ------- (None) > --- INVENTORY (5) ---- Nuclear Core Improved Signal Interpreter Advanced ECM Suite Improved Grenade Launcher Hammer Peak State ------------ > --- POWER ------------ Ion Engine Ion Engine > --- PROPULSION ------- Medium Treads Medium Treads Medium Treads Medium Treads > --- UTILITY ---------- Heat Sink High-capacity Storage Unit Machine Analyzer Transport Network Coupler > --- WEAPON ----------- Powered Cannon > --- INVENTORY -------- Ion Engine Light Treads Light Treads Light Treads Flight Unit Flight Unit Flight Unit Cryofiber Web Weight Redist. System Structural Scanner Seismic Detector Targeting Computer ECM Suite Light Armor Plating Assault Rifle Subdweller Machine Gun Subdweller Machine Gun Shock Bomb Launcher Remote Datajack Mining Claw [Rating: 41] Favorites ----------- Power Light Nuclear Core Engine Ion Engine Power Core Light Nuclear Core Propulsion Light Treads Treads Light Treads Flight Unit Flight Unit Utility High-capacity Storage Unit Device Heat Sink Storage High-capacity Storage Unit Processor Transport Network Coupler Hackware Hacking Suite Protection Light Armor Plating Weapon Assault Rifle Energy Gun Small Laser Energy Cannon Powered Cannon Ballistic Gun Assault Rifle Launcher Grenade Launcher Special Weapon Remote Datajack Impact Weapon Heavy Mace Build | -11 -10 -10 -8 -7 ------- Run | Yrd Mat Sub Mat Fac Slots Evolved 6 | . . . 4 2 Power . | . . . . . Propulsion 2 | . . . 2 . Utility 4 | . . . 2 2 Weapon . | . . . . . Parts Attached 65 | 7 9 8 27 14 Power 11 | 1 2 2 3 3 Engine 5 | 1 1 2 1 . Core 6 | . 1 . 2 3 Reactor . | . . . . . Propulsion 20 | 2 2 1 11 4 Treads 16 | 2 2 1 11 . Leg . | . . . . . Wheel . | . . . . . Hover . | . . . . . Flight 4 | . . . . 4 Utility 19 | 2 2 . 9 6 Device 8 | 1 1 . 1 5 Storage 2 | 1 1 . . . Processor 2 | . . . 2 . Hackware 2 | . . . 1 1 Protection 5 | . . . 5 . Artifact . | . . . . . Weapon 15 | 2 3 5 4 1 Energy Gun 2 | . 2 . . . Energy Cannon 1 | . . 1 . . Ballistic Gun 8 | 2 1 3 2 . Ballistic Cannon . | . . . . . Launcher 1 | . . 1 . . Special Weapon 1 | . . . . 1 Impact Weapon 2 | . . . 2 . Slashing Weapon . | . . . . . Piercing Weapon . | . . . . . Special Melee Weapon . | . . . . . Unidentified Prototypes 1 | . . . . 1 Parts Lost 29 | . 3 3 10 13 Power 4 | . . 1 2 1 Propulsion 7 | . . 1 2 4 Utility 12 | . 1 . 5 6 Weapon 6 | . 2 1 1 2 Highest Loss Streak 13 | . 2 1 3 13 To Critical Strikes . | . . . . . Average Backups 15 | . 15 19 19 6 Power 1 | . 1 1 . . Propulsion 3 | . 3 4 5 . Utility 6 | . 6 9 7 2 Weapon 3 | . 4 4 2 2 Tool/Special . | . . . . . Unused Backups 13 | . 2 . 5 6 Power 1 | . . . . 1 Propulsion . | . . . . . Utility 4 | . 1 . 1 2 Weapon 6 | . 1 . 3 2 Tool/Special 2 | . . . 1 1 Average Slot Usage (%) 93 | . 92 93 95 87 Engine 4 | . 4 8 4 . Core 7 | . 9 8 5 6 Treads 27 | . 28 26 34 . Flight 2 | . . . . 27 Device 11 | . 13 13 2 27 Storage 10 | . 14 13 8 . Processor 3 | . . . 11 . Hackware 2 | . . . 5 9 Protection 1 | . . . 5 . Energy Gun 4 | . 9 . . . Energy Cannon 1 | . . 3 1 . Ballistic Gun 9 | . 11 18 7 . Impact Weapon 3 | . . . 7 6 Peak Build Rating 41 | 7 11 22 41 31 Average Rating 17 | 5 9 14 29 25 On Entrance 11 | . 7 11 22 19 Avg Prop Armor Cover (%) . | . . . . . Naked Turns 1 | . . . . 1 Heaviest Build 60 | 13 49 60 60 55 Greatest Support 112 | 40 40 40 112 74 Greatest Overweight (x) 3 | . 1 2 1 3 Average Overweight (x) . | . . 1 . . Largest Inventory Capacity 20 | 8 20 20 20 20 Average Capacity 17 | 7 17 20 20 6 Most Carried 20 | 1 20 20 20 20 Average Carried 15 | . 15 19 19 6 Final Capacity 20 | 8 20 20 20 5 Final Carried 20 | 1 20 19 20 5 Class Distribution -------------------- 72% | Mutant 19% | Scavenger-Mutant 5% | Scavenger-Sprinter Dominant Class ---------------- Mutant | -10/Materials Mutant | -10/Subcaves Mutant | -8/Materials Scavenger-Sprinter | -7/Factory Resources | -11 -10 -10 -8 -7 ----------- Run | Yrd Mat Sub Mat Fac Matter Collected 1431 | 221 322 161 709 18 Remotely . | . . . . . Salvage Created 2080 | 60 613 164 1225 18 Parts 113 | 6 31 11 65 . Haulers Intercepted 6 | . 2 . 4 . Recyclers Shooed 5 | . 4 . 1 . Parts Field Recycled . | . . . . . Retrieved Matter . | . . . . . Parts Self-Destructed . | . . . . . Prevented . | . . . . . Parts Restored . | . . . . . Kills | -11 -10 -10 -8 -7 ------- Run | Yrd Mat Sub Mat Fac Combat Hostiles Destroyed 40 | . 11 5 24 . Melee 1 | . . . 1 . Guns 30 | . 11 3 16 . Cannons 7 | . . . 7 . AOE 2 | . . 2 . . Classes Destroyed 13 | 2 5 1 5 . Worker 5 | . 2 . 3 . Tunneler 2 | 1 1 . . . Hauler 6 | . 2 . 4 . Recycler 3 | 1 . . 2 . Mechanic 1 | . 1 . . . Operator 2 | . . . 1 1 Watcher 2 | . . . 2 . Swarmer 13 | . 3 . 10 . Grunt 15 | . 8 . 7 . Brawler 1 | . . . 1 . Duelist 2 | . . . 2 . Sentry 4 | . . . 4 . Subdweller 5 | . . 5 . . Best Kill Streak 7 | 2 3 3 7 1 Combat Bots Only 5 | . 3 3 5 . Max Kills in Single Turn 2 | 1 2 1 1 1 Gunslinging . | . . . . . Exploded 1 | . . 1 . . Melee 1 | . . . 1 . Uniques/NPCs Destroyed . | . . . . . Combat | -11 -10 -10 -8 -7 -------- Run | Yrd Mat Sub Mat Fac Hostile Shots Fired 498 | . 70 35 236 157 Missed 165 | . 21 9 62 73 Hits 333 | . 49 26 174 84 Melee 19 | . . . 19 . Projectile 314 | . 49 26 155 84 AOE 2 | . . . . 2 Critical Strikes 16 | . . 1 13 2 Part Disruptions 1 | . . . . 1 Damage Taken 5026 | . 539 704 2476 1307 Core 1206 | . 104 96 298 708 Absorbed by Shields . | . . . . . Regen/Repaired (Parts) 147 | . . . 147 . Core Remaining (%) 55 | 100 . 20 45 . Volleys Fired 253 | 7 78 19 149 . Largest 2 | 2 2 2 1 . Hottest 80 | 40 80 60 40 . Shots Fired 328 | 14 128 36 150 . Gun 288 | 14 128 33 113 . Cannon 37 | . . . 37 . Launcher 3 | . . 3 . . Special . | . . . . . Kinetic 204 | 14 44 33 113 . Thermal 121 | . 84 . 37 . Explosive 3 | . . 3 . . Electromagnetic . | . . . . . Robot Hit Streak 16 | 7 16 12 15 . Robot Miss Streak 10 | 1 4 2 10 . Penetration Max . | . . . . . Secondary Targets 1 | . 1 . . . Max Gunslinging Chain 1 | . 1 . . . Shots Hit Robots 231 | 11 82 25 112 1 Core Hits 102 | 3 33 11 55 . Critical Kills . | . . . . . Critical Parts Destroyed 1 | . 1 . . . Critical Strikes 1 | . 1 . . . Destroy 1 | . 1 . . . Melee Attacks 65 | . . . 14 51 Impact 65 | . . . 14 51 Slashing . | . . . . . Piercing . | . . . . . Sneak Attacks 1 | . . . 1 . Combat Hostiles . | . . . . . Follow-up Attacks . | . . . . . Damage Inflicted 4686 | 137 999 579 2935 36 Guns 2960 | 137 999 274 1550 . Cannons 1147 | . . . 1147 . Explosions 305 | . . 305 . . Melee 260 | . . . 224 36 Ramming 14 | . . . 14 . Kinetic 2306 | 137 345 274 1550 . Thermal 1801 | . 654 . 1147 . Explosive 305 | . . 305 . . Electromagnetic . | . . . . . Impact 260 | . . . 224 36 Slashing . | . . . . . Piercing . | . . . . . Highest Corruption 8 | . . . 8 2 Average Corruption 7 | . . . 7 1 Corruption Purged . | . . . . . Corruption Blocked . | . . . . . Effects 40 | . . . 40 . Message Errors 9 | . . . 9 . Matter Fused 8 | . . . 8 . Heat Flow Errors 8 | . . . 8 . Energy Discharges 3 | . . . 3 . Parts Rejected 2 | . . . 2 . Data Loss (minor) 5 | . . . 5 . Data Loss (major) 3 | . . . 3 . Misfires 1 | . . . 1 . Alerts 1 | . . . 1 . Overload Shots . | . . . . . Overflow Damage 303 | . . . 282 21 Projectiles 182 | . . . 182 . Explosions . | . . . . . Melee 121 | . . . 100 21 Knockbacks . | . . . . . Impact . | . . . . . Kinetic . | . . . . . Secondary . | . . . . . Self-Inflicted Damage 27 | . . 27 . . Shots 2 | . . 2 . . Rammed 5 | . . . 5 . Targets Rammed 6 | . . . 6 . Kicked . | . . . . . Crushed 1 | . . . 1 . Highest Temperature 270 | . 255 . 270 8 Average Temperature 76 | . 79 . 74 8 Received Heat Transfer 1443 | . 213 153 882 195 Siege Activations . | . . . . . Martial Activations . | . . . . . Shielding Activations . | . . . . . Robots Disrupted . | . . . . . Combat Hostiles . | . . . . . Robots Corrupted 1 | . . . . 1 Combat Hostiles . | . . . . . Parts Fried 2 | . . . . 2 Impact Corruptions 5 | . . . 3 2 Robots Melted . | . . . . . Combat Hostiles . | . . . . . Parts Melted 5 | . 4 1 . . Heat Transferred 1500 | . 1500 . . . Parts Sabotaged . | . . . . . Parts Stolen . | . . . . . Parts Stripped . | . . . . . Power Chain Reactions . | . . . . . Alert | -11 -10 -10 -8 -7 ------- Run | Yrd Mat Sub Mat Fac Maximum Alert Level . | . . . . . Low Security (%) 100 | 100 100 . 100 100 Level 1 . | . . . . . Level 2 . | . . . . . Level 3 . | . . . . . Level 4 . | . . . . . Level 5 . | . . . . . High Security . | . . . . . Max Security . | . . . . . Peak Influence 134 | 10 75 . 134 33 Initial 15 | . . . . 15 Average 22 | . 9 . 47 5 Influence Increases 1210 | 10 335 . 746 119 Destroy 0b10 Robot/C 700 | . 220 . 480 . Destroy 0b10 Robot/NC 105 | 10 30 . 60 5 Destroy Leader 176 | . 44 . 132 . Trap Triggered on 0b10 10 | . . . . 10 Successful Hack 31 | . 9 . 11 11 Destroy Structure 53 | . 2 . 18 33 Partial Spotted 45 | . . . 15 30 Lose Combat Pursuer 90 | . 30 . 30 30 Influence Decreases 1210 | 10 335 . 711 154 Entered New Map 20 | . . . . 20 Time Decay 963 | 10 325 . 497 131 Lost Part 110 | . 10 . 97 3 Purge Threat 117 | . . . 117 . Squads Dispatched 14 | . 1 . 7 6 Investigation 4 | . 1 . 1 2 Extermination 2 | . . . . 2 Reinforcement 4 | . . . 2 2 Assault . | . . . . . Garrison 4 | . . . 4 . Intercept . | . . . . . Searches Triggered . | . . . . . Construction Impeded 1 | . . . 1 . Haulers Reinforced . | . . . . . Active Scanning Responses . | . . . . . Cargo Convoy Interrupts . | . . . . . Stealth | -11 -10 -10 -8 -7 --------- Run | Yrd Mat Sub Mat Fac Distress Signals 5 | . . . 5 . Communications Jammed . | . . . . . Distress Signals . | . . . . . Times Spotted 122 | . 44 7 46 25 Peak Tracking Total 10 | . 5 3 5 10 Tactical Retreats 8 | . 1 . 1 6 ECM-based Alert Blocks 12 | . . . . 12 Traps | -11 -10 -10 -8 -7 ------- Run | Yrd Mat Sub Mat Fac Traps Triggered 1 | . . 1 . . Indirectly . | . . . . . Trap Hack Attempts . | . . . . . Triggered . | . . . . . Disarmed . | . . . . . Reprogrammed 1 | . . . . 1 Reused 1 | . . . . 1 Traps Extracted . | . . . . . Installed . | . . . . . Triggered 1 | . . . . 1 Machines | -11 -10 -10 -8 -7 ---------- Run | Yrd Mat Sub Mat Fac Machines Disabled 1 | . . 1 . . Max in Single Turn 1 | . . 1 . . Machines Repaired . | . . . . . Machines Dismantled . | . . . . . Machines Sabotaged . | . . . . . Overloaded Fab Kills . | . . . . . Hacking | -11 -10 -10 -8 -7 --------- Run | Yrd Mat Sub Mat Fac Machines Accessed 17 | . 4 2 7 4 Terminals 12 | . 3 . 6 3 Fabricators . | . . . . . Repair Stations 1 | . . . 1 . Recycling Units 1 | . 1 . . . Scanalyzers 1 | . . . . 1 Garrison Access . | . . . . . Total Hacks 59 | . 17 12 20 10 Successful 34 | . 8 12 7 7 Failed 24 | . 9 . 13 2 Catastrophic 3 | . . . 3 . Database Lockouts 1 | . . . . 1 Manual 27 | . 9 2 12 4 Terminals 38 | . 16 . 17 5 Fabricators . | . . . . . Repair Stations 3 | . . . 3 . Recycling Units 1 | . 1 . . . Scanalyzers 5 | . . . . 5 Garrison Access . | . . . . . Terminal Hacks 28 | . 7 12 5 4 Record 11 | . . 11 . . Part Schematic 1 | . . . . 1 Prototype ID Bank 1 | . 1 . . . Open DSF 1 | . . . . 1 Emergency Access Points 1 | . 1 . . . Terminal Index 2 | . 1 . 1 . Alert Level 1 | . 1 . . . Unreport Threat 1 | . . . 1 . Locate Traps 1 | . . . . 1 Reprogram Traps 1 | . . . . 1 Transport Status 1 | . 1 . . . Recall Investigation 2 | . 1 . 1 . Hauler Manifests 1 | . 1 . . . Zone Layout 2 | . . . 2 . Proto ID Catalog 1 | . . 1 . . Fabricator Hacks . | . . . . . Repair Station Hacks 2 | . . . 2 . Scan Component 1 | . . . 1 . Repair 1 | . . . 1 . Recycling Unit Hacks 1 | . 1 . . . Report Inventory 1 | . 1 . . . Scanalyzer 3 | . . . . 3 Insert Component 1 | . . . . 1 Analyze 1 | . . . . 1 Retrieve Study 1 | . . . . 1 Garrison Access Hacks . | . . . . . Unauthorized Hacks . | . . . . . Terminals . | . . . . . Fabricators . | . . . . . Repair Stations . | . . . . . Recycling Units . | . . . . . Scanalyzers . | . . . . . Garrison Access . | . . . . . Data Cores Recovered . | . . . . . Used . | . . . . . Hacking Detections 14 | . 3 . 7 4 Full Trace Events 4 | . 1 . 1 2 Feedback Events . | . . . . . Feedback Blocked . | . . . . . Robot Schematics Acquired . | . . . . . Robots Built . | . . . . . Authchips . | . . . . . Time . | . . . . . Total Robot Build Rating . | . . . . . Part Schematics Acquired 1 | . . . . 1 Parts Built . | . . . . . Authchips . | . . . . . Time . | . . . . . Total Part Build Rating . | . . . . . Part Studies Acquired 1 | . . . . 1 Parts Repaired 1 | . . . 1 . Time 44 | . . . 44 . Parts Recycled . | . . . . . Recycled Matter . | . . . . . Retrieved Matter . | . . . . . Retrieved Components . | . . . . . Parts Scanalyzed 1 | . . . . 1 Part Schematics Acquired . | . . . . . Parts Damaged . | . . . . . Bothacking | -11 -10 -10 -8 -7 ------------ Run | Yrd Mat Sub Mat Fac Used RIF Installer . | . . . . . Robots Hacked . | . . . . . Non-combat . | . . . . . Combat . | . . . . . Robot Hacks Applied . | . . . . . Relay Couplers Released . | . . . . . Fabnet Peak Effective % . | . . . . . Robots Rewired . | . . . . . Allies Hacked . | . . . . . Hacks Repelled . | . . . . . Allies | -11 -10 -10 -8 -7 -------- Run | Yrd Mat Sub Mat Fac Total Allies . | . . . . . Largest Group . | . . . . . Highest-Rated Group . | . . . . . Highest-Rated Ally . | . . . . . Total Orders . | . . . . . Ally Attacks . | . . . . . Total Damage . | . . . . . Kills . | . . . . . Allies Corrupted . | . . . . . Allies Melted . | . . . . . Intel | -11 -10 -10 -8 -7 ------- Run | Yrd Mat Sub Mat Fac Active Infowar (turns) 3119 | 32 456 . 2038 593 Structural 566 | . . . . 566 Seismic 489 | 32 456 . . 1 T.N.C. 2045 | . . . 2037 8 Machine Analysis 758 | . . . 758 . ECM 152 | . . . . 152 Robot Analysis Total . | . . . . . Derelict Logs Recovered . | . . . . . Drone Launches . | . . . . . Drone Recoveries . | . . . . . Exploration | -11 -10 -10 -8 -7 ------------- Run | Yrd Mat Sub Mat Fac Turns Passed 6411 | 133 2790 806 2050 632 Spaces Moved 3524 | 67 1151 308 964 1034 Core 5 | 5 . . . . Treads 2487 | 62 1151 308 964 2 Legs . | . . . . . Wheels . | . . . . . Hover . | . . . . . Flight 1032 | . . . . 1032 Fastest Speed 29 | 50 160 240 160 29 Average Speed 147 | 151 216 240 160 31 Slowest Speed 320 | 160 240 320 240 274 Overloaded Moves . | . . . . . Propulsion Burnouts . | . . . . . Robots Hopped 1 | . . . . 1 Potential Cave-ins 3 | . . . 3 . Cave-ins Triggered . | . . . . . Exploration Rate (%) 41 | 4 93 33 57 22 Regions Visited 4 Branch Regions 1 Pre-discovered Areas . | . . . . . Known Exits Taken . | . . . . . Unknown Exits Taken 4 | 1 1 1 1 . Scrap Searched 2 | . . 2 . . Spaces Dug 40 | . . . 6 34 Terrain Destroyed 69 | . . 17 18 34 Melee 40 | . . . 6 34 Projectile 12 | . . . 12 . AOE 17 | . . 17 . . Terrain Rammed . | . . . . . Walls Destroyed . | . . . . . Machines Disabled . | . . . . . Actions | -11 -10 -10 -8 -7 --------- Run | Yrd Mat Sub Mat Fac Total 4302 | 81 1322 339 1306 1254 Wait 293 | . 56 . 103 134 Move 3518 | 66 1150 307 963 1032 Hop 1 | . . . . 1 Pick Up 40 | 1 21 . 16 2 Fast Attach 24 | 7 2 3 9 3 Attach 22 | . 1 4 6 11 Detach 9 | . . 3 2 4 Swap 26 | . 8 1 15 2 Drop 45 | . 6 2 23 14 Fire 253 | 7 78 19 149 . Melee 65 | . . . 14 51 Ram . | . . . . . Kick . | . . . . . Crush 6 | . . . 6 . Escape Stasis . | . . . . . Rewire . | . . . . . Trap . | . . . . . Miscellaneous . | . . . . . Route ------- -11/Scrapyard -10/Materials (discovered 5 exits: [*Mat x3] / [*Min] / *Sub) -10/Subcaves -8/Materials (discovered 3 exits: *Fac x2 / [*Sto]) -7/Factory (discovered 6 exits: *Fac x4 / *Low x2) History --------- Turn | Location | Event 10 | -11/Scrapyard | Discovered new exit (range 15) 134 | -11/Scrapyard | Entered Materials 306 | -10/Materials | Build established: Mutant 524 | -10/Materials | Discovered new exit (range 14) 856 | -10/Materials | Discovered new exit (range 14) 915 | -10/Materials | Build established: Scavenger-Mutant 1618 | -10/Materials | Build established: Mutant 1672 | -10/Materials | Discovered new exit (range 16) 1861 | -10/Materials | Discovered new exit (range 14) 2883 | -10/Materials | Discovered new exit (range 15) 2924 | -10/Materials | Entered Subcaves 2932 | -10/Subcaves | Shifting Twisted Machinery released Sub. Monowheel 2990 | -10/Subcaves | Core integrity fell below 50% 3057 | -10/Subcaves | Shifting Twisted Machinery released Scrap Shield 3176 | -10/Subcaves | Shifting Twisted Machinery released Riot Gun 3198 | -10/Subcaves | Shifting Twisted Machinery released Sub. Machine Gun 3377 | -10/Subcaves | Visited 4L-MR0's lab 3466 | -10/Subcaves | Found Powered Cannon 3468 | -10/Subcaves | Attached Powered Cannon, gained temporary slot: Power 3625 | -10/Subcaves | Visited Clippyterm 3632 | -10/Subcaves | Learned 40 Factory zone layouts 3673 | -10/Subcaves | Discovered new exit (range 13) 3730 | -10/Subcaves | Entered Materials 3730 | -8/Materials | Evolved 4 slots: Propulsion x2, Utility x2 3730 | -8/Materials | Discovered new exit (range 15) 4039 | -8/Materials | Build established: Scavenger-Mutant 4337 | -8/Materials | Garrison activated, responded to threat 4486 | -8/Materials | Build established: Mutant 4534 | -8/Materials | Lost 3 parts (1n2u) 4726 | -8/Materials | Repaired Med. Treads 4750 | -8/Materials | Garrison activated, responded to threat 4841 | -8/Materials | Discovered new exit (range 13) 5707 | -8/Materials | Discovered new exit (range 8) 5761 | -8/Materials | Core integrity fell below 50% 5780 | -8/Materials | Entered Factory 5780 | -7/Factory | Evolved 2 slots: Utility x2 5781 | -7/Factory | Identified exit to Lower Caves 5781 | -7/Factory | Identified exit to Factory 5790 | -7/Factory | Lost 3 parts (1p1u1w) 6164 | -7/Factory | Build established: Scavenger-Sprinter 6180 | -7/Factory | Central database locked down 6305 | -7/Factory | Discovered exit to Factory (range 4) 6401 | -7/Factory | Core integrity fell below 50% 6408 | -7/Factory | Core integrity fell below 20% 6412 | -7/Factory | Destroyed by G-47 Trooper with Particle Gun Last Messages --------------- 06387_ Terminal disabled. 06387_ S-27 Virus destroyed. 06387_ Fusion Modulator explodes. 06387_ U-05 Engineer destroyed. 06387_ Scanalyzer disabled. 06387_ System Shield destroyed. 06388_ P-60 Hacker resets S-27 Virus, system corruption cleaned. 06389_ Hvy. Mace destroyed. 06390_ Enh. Nuclear Core destroyed. 06393_ Structural Scanner destroyed. 06394_ VTOL Module destroyed. 06395_ Drone sends a signal. 06396_ ECM Suite destroyed. 06398_ Slug penetrates Wall. 06402_ U-05 Engineer lays Concrete. 06403_ U-05 Engineer builds a Wall. 06406_ P-60 Hacker resets G-47 Trooper, system corruption cleaned. 06408_ U-05 Engineer builds a Wall. 06410_ Slug penetrates Wall. 06411_ Hacking Suite destroyed. Map ----- +----------------------------------------------------+ | ###########???????????????????????###########????? | | ##???######??????????????# #????? | | #############????????????# ""G"" #????? | | "" """ #######T ####????????????# " " ###### | | "" """ #### ############### # | | "" """ #### ######################+## | | #### # "" | | "" """ #### # "" | | "" """ ####### + """ | | "" """ + ########## ##########+####### # """ | | ## ########## ###### #?# # """ | | ! ## ##??????## ###### #?# # | | / ## ##??????## # # """ #?# ###### | | ###+####### ########## # # """ #?# #????? | | # #####+########## # # """ #?# #????? | | # # ! ### # # #?# #????? | | # # ### # # #?# #????? | | + + """ / + # ### #????? | | # # """"" ##### ############# #????? | | # # """"" ##### !#####???##### #????? | | # ############;##### ;#########Y## #????? | | # h #;;;;;;;;;# !!= # #????? | | # ! !! ; s #/ !! # #????? | | # s!! #;p !! # ##???? | | + ;; % # ##???? | | # #; =@ ]# ##???? | | !# / ;; " "" # ##???? | | ##############;; "S"" # ##???? | | ## #################; ; """ + ###### | | ## # # #; ; # ###### | | ## + # ## ! g ########## ##]] | | ## # # ###;;;;;g## ### ! #]= | | ## # # # g ### " # | | ?# # """ """ # + "T + " " | | ?# # """ """ # # !! ### # "R" | | ?# # """ """ # ### ! ### ! # """ | | ?# # # ### ######### | | ?# ########### ### """"""""" ##########+## | | ?# ###################s ##?????### ## | | ## ########## ## | | ## #######################+##### ##########+## | | # #################### # ## | | # # """ #?########! """ # + " " " | | # # "Y" #?# # """"" # # " " " | | # # " " #?# # """"" # # " " " | | + + """ #?# """ #! + / " " " | | # # """ ### """ # """ # #### " " " | | # # """ # # """ # """"" # #### " " " | | # # ### # """"" # #### ! " " " | | ## + #?####+### # #### " " " | +----------------------------------------------------+ Best States ------------- Heat Dissipation 41 Energy Generation 17 Energy Capacity 400 Matter Stores 300 Matter Capacity 300 Sight Range 16 Terrain Scan Density 10 ECM Strength 1 Additional Mass Support 6 Armor Coverage 225 Evasion (%) 72 Recoil Reduction 4 Offensive Hacking 10 Defensive Hacking 10 Item Schematics ----------------- Hacking Suite | -7/Factory | Hacked Robot Schematics ------------------ None Fabricated ------------ Nothing Repaired ---------- Med. Treads | 20% | -8/Materials Studied --------- Flight Unit | -7/Factory | Hacked Alien Tech Used ----------------- None Achievements -------------- None Challenges ------------ None Game ------ Seed TransportThrowingFacilitator Manual? 0 Play Time 00:54:05 Cumulative 27.2 hours Start 2026.01.29 @ 18:44:36 End 2026.01.29 @ 19:36:34 Sessions 1 Manual Loads 0 Difficulty Rogue Special Mode None Game No. 55 Rogue 55 Adventurer 0 Explorer 0 Win Type - Total 0 Types 0/0/0/0/0/0/0/0/0/0 Lore% 14 Gallery% 22 Achievement% 18 Wizard Run 0 Options --------- Layout 0 ASCII 0 Keyboard 1 Movement Arrows Keybinds 0 Fullscreen 1 Font 18/Smallcaps Map View 38x25 Zoom Use 85% Tactical HUD 1 Map Filters NONE Filters NONE Steam 1 RUN: 0a3c766e-18ad-49bc-9b16-99a4dc06415f